[Event "Charlotte Spring-B 2022"]
[Site "Charlotte"]
[Date "2022.03.17"]
[Round "2.1"]
[White "Wang, Tianqi"]
[Black "Mishra, Prateek"]
[Result "1/2-1/2"]
[ECO "D00"]
[WhiteElo "2322"]
[BlackElo "2128"]
[Annotator "ChessBase"]
[PlyCount "60"]
[EventDate "2022.03.16"]
[EventType "tourn"]
[EventCountry "USA"]
[SourceTitle "playchess.com"]
[Source "ChessBase"]
[SourceQuality "1"]
[TimeControl "5400+30"]

1. d4 {[%emt 1:31:00]} Nf6 {[%emt 1:31:00]} 2. Nf3 {[%emt 0:00:30]} g6 {[%emt 0:00:00]} 3. Nc3 {[%emt 0:00:00]} d5 {[%emt 0:00:00]} 4. Bf4 {[%emt 0:00:00]} Bg7 {[%emt 0:00:00]} 5. Nb5 {[%emt 0:00:00]} Na6 {[%emt 0:00:00]} 6. e3 {[%emt 0:00:00]} c6 {[%emt 0:00:00]} 7. Nc3 {[%emt 0:00:00]} Qb6 {[%emt 0:00:00]} 8. Rb1 {[%emt 0:00:00]} O-O {[%emt 0:00:00]} 9. h3 {[%emt 0:00:00]} c5 {[%emt 0:00:00]} 10. Be5 {[%emt 0:00:00]} Rd8 {[%emt 0:00:00]} 11. Bxa6 {[%emt 0:00:00]} bxa6 {[%emt 0:00:00]} 12. O-O {[%emt 0:00:00]} Qc6 {[%emt 0:00:00]} 13. dxc5 {[%emt 0:00:00]} Qxc5 {[%emt 0:00:00]} 14. Na4 {[%emt 0:00:00]} Qc6 {[%emt 0:00:00]} 15. Qd4 {[%emt 0:00:00]} Qxc2 {[%emt 0:00:00]} 16. Nc5 {[%emt 0:00:00]} Qc4 {[%emt 0:00:00]} 17. Rfd1 {[%emt 0:00:00]} Qxd4 {[%emt 0:00:00]} 18. Rxd4 {[%emt 0:00:00]} e6 {[%emt 0:00:00]} 19. Rc1 {[%emt 0:00:00]} Nd7 {[%emt 0:00:00]} 20. Bxg7 {[%emt 0:00:00]} Kxg7 {[%emt 0:00:00]} 21. e4 {[%emt 0:00:00]} Nxc5 {[%emt 0:10:00]} 22. Rxc5 {[%emt 0:00:00]} Rb8 {[%emt 0:00:00]} 23. exd5 {[%emt 0:00:00]} exd5 {[%emt 0:00:00]} 24. b3 {[%emt 0:00:00]} Rb5 {[%emt 0:00:00]} 25. Rc3 {[%emt 0:00:00]} Bf5 {[%emt 0:00:00]} 26. Ra4 {[%emt 0:00:00]} Rc8 {[%emt 0:00:00]} 27. Re3 {[%emt 0:00:00]} Rc1+ {[%emt 0:00:00]} 28. Kh2 {[%emt 0:00:00]} Bc8 {[%emt 0:00:00]} 29. Rf4 {[%emt 0:03:30]} Rc7 {[%emt 0:00:00]} 30. Nd4 {[%emt 0:00:20]} Rb6 {[%emt 0:00:00]} 1/2-1/2

[Event "Charlotte Spring-B 2022"]
[Site "Charlotte"]
[Date "2022.03.17"]
[Round "2.2"]
[White "Ngo, Bach"]
[Black "Rusonik, Max"]
[Result "1-0"]
[ECO "D30"]
[WhiteElo "2306"]
[BlackElo "2141"]
[Annotator "ChessBase"]
[PlyCount "59"]
[EventDate "2022.03.16"]
[EventType "tourn"]
[EventCountry "USA"]
[SourceTitle "playchess.com"]
[Source "ChessBase"]
[SourceQuality "1"]
[TimeControl "5400+30"]

1. d4 {[%emt 0:00:04]} d5 {[%emt 0:00:09]} 2. Nf3 {[%emt 0:00:06]} e6 {[%emt 0:00:26]} 3. c4 {[%emt 0:00:18]} c5 {[%emt 0:00:23]} 4. cxd5 {[%emt 0:00:18]} exd5 {[%emt 0:00:06]} 5. Bg5 {[%emt 0:00:07]} Be7 {[%emt 0:00:54]} 6. Bxe7 {[%emt 0:00:08]} Qxe7 {[%emt 0:00:39]} 7. dxc5 {[%emt 0:00:15]} Qxc5 {[%emt 0:09:42]} 8. Nc3 {[%emt 0:00:21]} Nf6 {[%emt 0:00:07]} 9. e3 {[%emt 0:00:18]} Nc6 {[%emt 0:00:38]} 10. Bb5 {[%emt 0:06:57]} O-O {[%emt 0:06:50]} 11. O-O {[%emt 0:02:59]} Rd8 {[%emt 0:11:39]} 12. Rc1 {[%emt 0:01:10]} Qb6 {[%emt 0:00:03]} 13. Bxc6 {[%emt 0:06:08]} bxc6 {[%emt 0:11:14]} 14. Na4 {[%emt 0:00:45]} Qa6 {[%emt 0:15:09]} 15. Ne5 {[%emt 0:04:01]} Rd6 {[%emt 0:00:54]} 16. Qd4 {[%emt 0:02:24]} Rb8 {[%emt 0:01:02]} 17. b3 {[%emt 0:06:22]} Ne4 {[%emt 0:14:30]} 18. f3 {[%emt 0:06:08]} c5 {[%emt 0:00:01]} 19. Nxc5 {[%emt 0:04:47]} Nxc5 {[%emt 0:00:15]} 20. Qxc5 {[%emt 0:00:57]} Bd7 {[%emt 0:02:29]} 21. Rfd1 {[%emt 0:05:07]} Rc8 {[%emt 0:01:20]} 22. Qd4 {[%emt 0:00:23]} Rxc1 {[%emt 0:00:11]} 23. Rxc1 {[%emt 0:00:06]} f6 {[%emt 0:00:06]} 24. Nxd7 {[%emt 0:02:11]} Rxd7 {[%emt 0:00:03]} 25. a4 {[%emt 0:00:28]} Qe2 {[%emt 0:00:45]} 26. h3 {[%emt 0:00:53]} Qa2 {[%emt 0:11:30]} 27. Qg4 {[%emt 0:05:36]} Re7 {[%emt 0:01:55]} 28. Rc8+ {[%emt 0:00:37]} Kf7 {[%emt 0:00:02]} 29. Qh5+ {[%emt 0:00:10]} Ke6 {[%emt 0:00:03]} 30. Rc6+ {[%emt 0:00:14]} 1-0

[Event "Charlotte Spring-B 2022"]
[Site "Charlotte"]
[Date "2022.03.17"]
[Round "2.3"]
[White "Almeida Saenz, Alfonso"]
[Black "Johnson, Donald"]
[Result "0-1"]
[ECO "B86"]
[WhiteElo "2259"]
[BlackElo "2060"]
[Annotator "ChessBase"]
[PlyCount "56"]
[EventDate "2022.03.16"]
[EventType "tourn"]
[EventCountry "USA"]
[SourceTitle "playchess.com"]
[Source "ChessBase"]
[SourceQuality "1"]
[TimeControl "5400+30"]

1. e4 {[%emt 0:01:10]} c5 {[%emt 0:00:01]} 2. Nf3 {[%emt 0:00:05]} d6 {[%emt 0:00:00]} 3. d4 {[%emt 0:00:07]} cxd4 {[%emt 0:00:01]} 4. Nxd4 {[%emt 0:00:08]} Nf6 {[%emt 0:00:05]} 5. Nc3 {[%emt 0:00:26]} a6 {[%emt 0:00:01]} 6. Bc4 {[%emt 0:00:17]} e6 {[%emt 0:00:03]} 7. g4 {[%emt 0:00:55]} b5 {[%emt 0:00:15]} 8. g5 {[%emt 0:00:06]} Nxe4 {[%emt 0:00:32]} 9. Bxb5+ {[%emt 0:00:07]} axb5 {[%emt 0:00:08]} 10. Nxe4 {[%emt 0:00:01]} Be7 {[%emt 0:00:39]} 11. Rg1 {[%emt 0:00:10]} d5 {[%emt 0:01:06]} 12. Ng3 {[%emt 0:00:36]} O-O {[%emt 0:01:12]} 13. Qh5 {[%emt 0:00:30]} Qb6 {[%emt 0:07:39]} 14. Be3 {[%emt 0:00:23]} Bc5 {[%emt 0:00:52]} 15. c3 {[%emt 0:00:42]} b4 {[%emt 0:02:32]} 16. Qe2 {[%emt 0:07:28]} Ba6 {[%emt 0:06:11]} 17. Qc2 {[%emt 0:00:34]} e5 {[%emt 0:21:14]} 18. Nh5 {[%emt 0:00:51]} exd4 {[%emt 0:17:31]} 19. Nf6+ {[%emt 0:01:20]} gxf6 {[%emt 0:00:06]} 20. gxf6+ {[%emt 0:00:06]} Kh8 {[%emt 0:00:01]} 21. cxd4 {[%emt 0:00:50]} Qxf6 {[%emt 0:07:48]} 22. Qxc5 {[%emt 0:00:54]} Nd7 {[%emt 0:01:09]} 23. Qxd5 {[%emt 0:00:14]} Nb6 {[%emt 0:01:16]} 24. Qh5 {[%emt 0:03:15]} Rac8 {[%emt 0:03:10]} 25. b3 {[%emt 0:04:24]} Rc2 {[%emt 0:05:19]} 26. a3 {[%emt 0:01:26]} Qc6 {[%emt 0:02:38]} 27. Qe5+ {[%emt 0:04:50]} f6 {[%emt 0:00:03]} 28. d5 {[%emt 0:00:06]} Re2+ {[%emt 0:02:33]} 0-1

[Event "Charlotte Spring-B 2022"]
[Site "Charlotte"]
[Date "2022.03.17"]
[Round "2.4"]
[White "Plotkin, Mark"]
[Black "Poliannikov, Danila"]
[Result "1-0"]
[ECO "A34"]
[WhiteElo "2400"]
[BlackElo "2273"]
[Annotator "ChessBase"]
[PlyCount "81"]
[EventDate "2022.03.16"]
[EventType "tourn"]
[EventCountry "USA"]
[SourceTitle "playchess.com"]
[Source "ChessBase"]
[SourceQuality "1"]
[TimeControl "5400+30"]

1. c4 {[%emt 0:02:22]} Nf6 {[%emt 0:00:05]} 2. Nc3 {[%emt 0:00:26]} c5 {[%emt 0:00:11]} 3. Nf3 {[%emt 0:01:19]} d5 {[%emt 0:00:05]} 4. cxd5 {[%emt 0:00:05]} Nxd5 {[%emt 0:00:01]} 5. g3 {[%emt 0:05:37]} Nc6 {[%emt 1:32:38]} 6. Bg2 {[%emt 0:00:12]} Nc7 {[%emt 0:00:00]} 7. O-O {[%emt 0:01:44]} e5 {[%emt 0:00:00]} 8. d3 {[%emt 0:00:48]} Be7 {[%emt 0:00:00]} 9. Be3 {[%emt 0:00:29]} O-O {[%emt 0:00:00]} 10. Rc1 {[%emt 0:06:59]} Bd7 {[%emt 0:00:00]} 11. a3 {[%emt 0:06:16]} Rc8 {[%emt 0:00:00]} 12. Nd2 {[%emt 0:04:13]} b6 {[%emt 0:00:00]} 13. Nc4 {[%emt 0:12:09]} f6 {[%emt 0:00:00]} 14. f4 {[%emt 0:04:10]} exf4 {[%emt 0:00:00]} 15. gxf4 {[%emt 0:09:54]} f5 {[%emt 0:00:00]} 16. Kh1 {[%emt 0:04:41]} Kh8 {[%emt 0:00:00]} 17. Qe1 {[%emt 0:02:13]} Ne6 {[%emt 0:00:00]} 18. Qg3 {[%emt 0:06:03]} Ned4 {[%emt 0:00:00]} 19. Rg1 {[%emt 0:08:51]} g6 {[%emt 0:07:00]} 20. b4 {[%emt 0:08:50]} b5 {[%emt 0:00:00]} 21. Bxd4+ {[%emt 0:03:36]} Nxd4 {[%emt 0:00:00]} 22. Ne5 {[%emt 0:00:13]} Be8 {[%emt 0:00:00]} 23. Nd5 {[%emt 0:05:47]} Bf7 {[%emt 0:00:00]} 24. Nxe7 {[%emt 0:01:06]} Qxe7 {[%emt 0:00:00]} 25. Qe3 {[%emt 0:00:11]} Kg7 {[%emt 0:02:20]} 26. Rxc5 {[%emt 0:00:43]} Rxc5 {[%emt 0:00:15]} 27. Qxd4 {[%emt 0:00:37]} Rxe5 {[%emt 0:00:26]} 28. Rc1 {[%emt 0:01:08]} Re8 {[%emt 0:00:36]} 29. Rc5 {[%emt 0:02:50]} Qh4 {[%emt 0:00:11]} 30. Rxe5 {[%emt 0:00:05]} Rxe5 {[%emt 0:00:19]} 31. Qxe5+ {[%emt 0:00:03]} Kh6 {[%emt 0:00:01]} 32. Bf3 {[%emt 0:00:22]} Qf2 {[%emt 0:00:54]} 33. Qa1 {[%emt 0:01:28]} Bb3 {[%emt 0:01:23]} 34. Qg1 {[%emt 0:00:30]} Qh4 {[%emt 0:00:02]} 35. Qd4 {[%emt 0:00:55]} Bd1 {[%emt 0:00:57]} 36. Kg2 {[%emt 0:00:15]} Qe7 {[%emt 0:00:29]} 37. Qc5 {[%emt 0:00:35]} Qf7 {[%emt 0:00:35]} 38. Qxb5 {[%emt 0:00:23]} Bb3 {[%emt 0:00:30]} 39. Qe5 {[%emt 0:00:42]} Be6 {[%emt 0:00:23]} 40. d4 {[%emt 0:00:12]} g5 {[%emt 0:00:37]} 41. d5 {[%emt 0:00:21]} 1-0

[Event "Charlotte Spring-B 2022"]
[Site "Charlotte"]
[Date "2022.03.17"]
[Round "2.5"]
[White "Arjun, Vishnuvardhan"]
[Black "Adewumi, Tanitoluwa"]
[Result "1/2-1/2"]
[ECO "D02"]
[WhiteElo "2268"]
[BlackElo "2190"]
[Annotator "ChessBase"]
[PlyCount "55"]
[EventDate "2022.03.16"]
[EventType "tourn"]
[EventCountry "USA"]
[SourceTitle "playchess.com"]
[Source "ChessBase"]
[SourceQuality "1"]
[TimeControl "5400+30"]

1. d4 {[%emt 0:05:07]} Nf6 {[%emt 1:31:00]} 2. Bf4 {[%emt 0:00:10]} d5 {[%emt 0:00:00]} 3. e3 {[%emt 0:00:54]} e6 {[%emt 0:00:00]} 4. Nd2 {[%emt 0:03:23]} c5 {[%emt 0:00:00]} 5. c3 {[%emt 0:00:08]} Nc6 {[%emt 0:00:00]} 6. Ngf3 {[%emt 0:00:35]} Be7 {[%emt 0:00:00]} 7. Bd3 {[%emt 0:01:12]} Nh5 {[%emt 0:00:00]} 8. Be5 {[%emt 0:01:00]} cxd4 {[%emt 0:00:00]} 9. cxd4 {[%emt 0:00:25]} f6 {[%emt 0:00:00]} 10. Bg3 {[%emt 0:00:47]} g6 {[%emt 0:00:00]} 11. Rc1 {[%emt 0:13:34]} O-O {[%emt 0:00:00]} 12. a3 {[%emt 0:02:11]} Bd6 {[%emt 0:00:00]} 13. Qb3 {[%emt 0:03:05]} Nxg3 {[%emt 0:00:00]} 14. hxg3 {[%emt 0:00:09]} Rf7 {[%emt 0:00:00]} 15. e4 {[%emt 0:05:55]} Bc7 {[%emt 0:00:00]} 16. Qc3 {[%emt 0:03:52]} Bb6 {[%emt 0:00:00]} 17. Nb3 {[%emt 0:03:46]} Bd7 {[%emt 0:00:00]} 18. Nc5 {[%emt 0:03:19]} Rc8 {[%emt 0:00:00]} 19. b4 {[%emt 0:00:57]} Ne5 {[%emt 0:00:00]} 20. Nxe5 {[%emt 0:06:03]} fxe5 {[%emt 0:00:00]} 21. O-O {[%emt 0:00:09]} Bc6 {[%emt 0:00:00]} 22. Nxe6 {[%emt 0:19:51]} Qd6 {[%emt 0:00:00]} 23. Ng5 {[%emt 0:06:09]} Rfc7 {[%emt 0:00:00]} 24. dxe5 {[%emt 0:00:55]} Qe7 {[%emt 0:00:00]} 25. Qd2 {[%emt 0:02:07]} Qxe5 {[%emt 0:00:00]} 26. Qf4 {[%emt 0:11:04]} Qxf4 {[%emt 0:00:00]} 27. gxf4 {[%emt 0:00:03]} dxe4 {[%emt 0:00:00]} 28. Nxe4 {[%emt 0:01:01]} 1/2-1/2

[Event "Charlotte Spring-B 2022"]
[Site "Charlotte"]
[Date "2022.03.18"]
[Round "3.5"]
[White "Mishra, Prateek"]
[Black "Ngo, Bach"]
[Result "0-1"]
[ECO "C77"]
[WhiteElo "2128"]
[BlackElo "2306"]
[Annotator "RC"]
[PlyCount "58"]
[EventDate "2022.03.16"]
[EventType "tourn"]
[EventCountry "USA"]
[SourceTitle "playchess.com"]
[Source "ChessBase"]
[SourceQuality "1"]
[TimeControl "5400+30"]

1. e4 {[%emt 0:00:59]} e5 {[%emt 0:00:07]} 2. Nf3 {[%emt 0:00:04]} Nc6 {[%emt 0:00:05]} 3. Bb5 {[%emt 0:00:05]} a6 {[%emt 0:00:08]} 4. Ba4 {[%emt 0:00:04]} Nf6 {[%emt 0:00:08]} 5. O-O {[%emt 0:00:04]} Be7 {[%emt 0:00:27]} 6. d3 {[%emt 0:00:07]} b5 {[%emt 0:00:20]} 7. Bb3 {[%emt 0:00:05]} d6 {[%emt 0:00:07]} 8. a3 {[%emt 0:00:05]} O-O {[%emt 0:00:10]} 9. Nc3 {[%emt 0:00:07]} Be6 {[%emt 0:00:10]} 10. Be3 {[%emt 0:00:56]} h6 {[%emt 0:14:30]} 11. Nd5 {[%emt 0:04:46]} Na5 {[%emt 0:00:45]} 12. Ba2 {[%emt 0:01:59]} Nxd5 {[%emt 0:03:01]} 13. exd5 {[%emt 0:01:08]} Bg4 {[%emt 0:00:17]} 14. h3 {[%emt 0:08:09]} Bh5 {[%emt 0:00:14]} 15. Qe1 {[%emt 0:23:26]} Bxf3 {[%emt 0:03:08]} 16. gxf3 {[%emt 0:04:10]} Nb7 {[%emt 0:02:05]} 17. Kh2 {[%emt 0:06:13]} Nc5 {[%emt 0:13:20]} 18. Rg1 {[%emt 0:02:48]} Kh7 {[%emt 0:11:03]} 19. c4 {[%emt 0:13:02]} f5 {[%emt 0:00:52]} 20. f4 {[%emt 0:17:08]} exf4 {[%emt 0:06:13]} 21. Bxf4 {[%emt 0:02:19]} Bf6 {[%emt 0:06:44]} 22. Qd2 {[%emt 0:01:14]} Bd4 {[%emt 0:02:43]} 23. Rae1 {[%emt 0:03:27]} Qh4 {[%emt 0:05:09]} 24. Rg3 {[%emt 0:05:56]} Rae8 {[%emt 0:01:51]} 25. Rxe8 {[%emt 0:00:22]} Rxe8 {[%emt 0:00:09]} 26. Be3 {[%emt 0:00:51]} Nd7 {[%emt 0:13:13]} 27. Bb3 {[%emt 0:01:23]} Ne5 {[%emt 0:01:21]} 28. Bxd4 {[%emt 0:01:20]} Qxd4 {[%emt 0:00:13]} 29. cxb5 {[%emt 0:00:50]} f4 {[%emt 0:00:25]} 0-1

[Event "Charlotte Spring-B 2022"]
[Site "Charlotte"]
[Date "2022.03.18"]
[Round "4.1"]
[White "Wang, Tianqi"]
[Black "Ngo, Bach"]
[Result "1/2-1/2"]
[ECO "A13"]
[WhiteElo "2322"]
[BlackElo "2306"]
[Annotator "ChessBase"]
[PlyCount "94"]
[EventDate "2022.03.16"]
[EventType "tourn"]
[EventCountry "USA"]
[SourceTitle "playchess.com"]
[Source "ChessBase"]
[SourceQuality "1"]
[TimeControl "5400+30"]

1. b3 {[%emt 0:02:54]} Nf6 {[%emt 1:31:00]} 2. Bb2 {[%emt 0:00:07]} d5 {[%emt 0:00:00]} 3. Nf3 {[%emt 0:00:20]} e6 {[%emt 0:00:00]} 4. c4 {[%emt 0:00:22]} Be7 {[%emt 0:00:00]} 5. e3 {[%emt 0:00:04]} O-O {[%emt 0:00:00]} 6. Nc3 {[%emt 0:00:08]} c5 {[%emt 0:00:00]} 7. cxd5 {[%emt 0:00:19]} Nxd5 {[%emt 0:00:00]} 8. Qc2 {[%emt 0:00:31]} Nc6 {[%emt 0:00:00]} 9. a3 {[%emt 0:00:07]} b6 {[%emt 0:00:00]} 10. h4 {[%emt 0:00:07]} h6 {[%emt 0:00:00]} 11. Nxd5 {[%emt 0:31:19]} exd5 {[%emt 0:00:00]} 12. d4 {[%emt 0:00:36]} Be6 {[%emt 0:00:00]} 13. Bb5 {[%emt 0:23:28]} Rc8 {[%emt 0:00:00]} 14. dxc5 {[%emt 0:04:37]} bxc5 {[%emt 0:00:00]} 15. O-O {[%emt 0:01:23]} Qb6 {[%emt 0:00:00]} 16. Bxc6 {[%emt 0:03:21]} Rxc6 {[%emt 0:00:00]} 17. Rfc1 {[%emt 0:01:24]} Rcc8 {[%emt 0:00:00]} 18. Qd3 {[%emt 0:04:53]} a5 {[%emt 0:00:00]} 19. Rab1 {[%emt 0:01:48]} Rfd8 {[%emt 0:00:00]} 20. Bc3 {[%emt 0:01:50]} d4 {[%emt 0:00:00]} 21. exd4 {[%emt 0:06:48]} cxd4 {[%emt 0:00:00]} 22. Bxd4 {[%emt 0:01:12]} Rxc1+ {[%emt 0:00:00]} 23. Rxc1 {[%emt 0:00:01]} Qxb3 {[%emt 0:00:00]} 24. Rc3 {[%emt 0:00:33]} Qa4 {[%emt 0:00:00]} 25. Qe3 {[%emt 0:00:44]} Bxh4 {[%emt 0:00:00]} 26. Rc7 {[%emt 0:05:36]} Bg5 {[%emt 0:00:00]} 27. Nxg5 {[%emt 0:05:18]} hxg5 {[%emt 0:00:00]} 28. Bc3 {[%emt 0:00:22]} Rd1+ {[%emt 0:00:00]} 29. Be1 {[%emt 0:00:06]} Qf4 {[%emt 0:00:00]} 30. Rc3 {[%emt 0:00:01]} a4 {[%emt 0:00:00]} 31. Qe2 {[%emt 0:00:27]} Qd6 {[%emt 0:00:00]} 32. Re3 {[%emt 0:00:12]} Ra1 {[%emt 0:00:00]} 33. Qb2 {[%emt 0:01:15]} Rd1 {[%emt 0:00:00]} 34. Qc2 {[%emt 0:00:21]} Qd4 {[%emt 0:00:00]} 35. Qc6 {[%emt 0:01:30]} Kh7 {[%emt 0:00:00]} 36. Qc2+ {[%emt 0:01:22]} Kg8 {[%emt 0:00:00]} 37. Qc6 {[%emt 0:00:09]} Qc4 {[%emt 0:00:00]} 38. Qxc4 {[%emt 0:00:18]} Bxc4 {[%emt 0:00:00]} 39. Kh2 {[%emt 0:00:01]} f5 {[%emt 0:00:00]} 40. Re5 {[%emt 0:00:18]} g6 {[%emt 0:00:11]} 41. Bb4 {[%emt 0:00:19]} Bb3 {[%emt 0:01:06]} 42. Re7 {[%emt 0:00:14]} Rd3 {[%emt 0:00:34]} 43. Re3 {[%emt 0:00:57]} Rd5 {[%emt 0:00:12]} 44. Re6 {[%emt 0:00:27]} Kf7 {[%emt 0:00:52]} 45. Rd6 {[%emt 0:00:25]} Re5 {[%emt 0:01:25]} 46. Bc3 {[%emt 0:00:08]} Re6 {[%emt 0:00:52]} 47. Rxe6 {[%emt 0:00:17]} Kxe6 {[%emt 0:00:09]} 1/2-1/2

[Event "Charlotte Spring-B 2022"]
[Site "Charlotte"]
[Date "2022.03.18"]
[Round "4.2"]
[White "Almeida Saenz, Alfonso"]
[Black "Mishra, Prateek"]
[Result "0-1"]
[ECO "C54"]
[WhiteElo "2259"]
[BlackElo "2128"]
[Annotator "ChessBase"]
[PlyCount "84"]
[EventDate "2022.03.16"]
[EventType "tourn"]
[EventCountry "USA"]
[SourceTitle "playchess.com"]
[Source "ChessBase"]
[SourceQuality "1"]
[TimeControl "5400+30"]

1. e4 {[%emt 0:01:23]} e5 {[%emt 0:00:05]} 2. Nf3 {[%emt 0:00:15]} Nc6 {[%emt 0:00:06]} 3. Bc4 {[%emt 0:00:20]} Bc5 {[%emt 0:00:14]} 4. c3 {[%emt 0:01:03]} Nf6 {[%emt 0:00:14]} 5. d3 {[%emt 0:01:13]} a5 {[%emt 0:01:34]} 6. O-O {[%emt 0:00:11]} d6 {[%emt 0:00:28]} 7. h3 {[%emt 0:00:57]} O-O {[%emt 0:00:28]} 8. Re1 {[%emt 0:00:32]} Be6 {[%emt 0:01:05]} 9. Nbd2 {[%emt 0:00:21]} a4 {[%emt 0:06:22]} 10. Bb5 {[%emt 0:00:54]} Qb8 {[%emt 0:00:43]} 11. Nf1 {[%emt 0:02:20]} Ra5 {[%emt 0:09:03]} 12. Bc4 {[%emt 0:02:58]} Qa7 {[%emt 0:05:27]} 13. Qc2 {[%emt 0:00:57]} Bxc4 {[%emt 0:16:46]} 14. dxc4 {[%emt 0:00:01]} Nd8 {[%emt 0:03:21]} 15. Bg5 {[%emt 0:00:58]} Nh5 {[%emt 0:03:12]} 16. Bxd8 {[%emt 0:00:20]} Rxd8 {[%emt 0:00:14]} 17. g3 {[%emt 0:00:35]} c6 {[%emt 0:08:14]} 18. Rad1 {[%emt 0:00:12]} Rb8 {[%emt 0:01:30]} 19. Re2 {[%emt 0:05:24]} b5 {[%emt 0:01:34]} 20. b4 {[%emt 0:00:14]} axb3 {[%emt 0:00:13]} 21. axb3 {[%emt 0:00:01]} b4 {[%emt 0:00:36]} 22. cxb4 {[%emt 0:00:30]} Rxb4 {[%emt 0:00:47]} 23. Kg2 {[%emt 0:01:28]} g6 {[%emt 0:01:57]} 24. Rd3 {[%emt 0:01:16]} Ng7 {[%emt 0:00:35]} 25. Qd2 {[%emt 0:00:16]} Ne6 {[%emt 0:01:57]} 26. Qh6 {[%emt 0:01:34]} Qe7 {[%emt 0:04:07]} 27. N1h2 {[%emt 0:00:24]} Ra3 {[%emt 0:01:42]} 28. Rb2 {[%emt 0:01:39]} f5 {[%emt 0:14:33]} 29. Nd2 {[%emt 0:11:53]} Bd4 {[%emt 0:00:34]} 30. Rc2 {[%emt 0:00:10]} Nc5 {[%emt 0:00:20]} 31. Rxd4 {[%emt 0:00:49]} exd4 {[%emt 0:00:19]} 32. exf5 {[%emt 0:00:06]} gxf5 {[%emt 0:02:45]} 33. Nhf3 {[%emt 0:00:24]} Nxb3 {[%emt 0:01:53]} 34. Rb2 {[%emt 0:01:03]} c5 {[%emt 0:00:25]} 35. Qf4 {[%emt 0:05:06]} Nxd2 {[%emt 0:01:21]} 36. Rxb4 {[%emt 0:00:44]} cxb4 {[%emt 0:02:40]} 37. Nxd2 {[%emt 0:00:03]} Rd3 {[%emt 0:02:13]} 38. g4 {[%emt 0:02:38]} fxg4 {[%emt 0:01:15]} 39. hxg4 {[%emt 0:00:07]} Qe5 {[%emt 0:01:19]} 40. Qh6 {[%emt 0:00:04]} b3 {[%emt 0:00:43]} 41. f3 {[%emt 0:03:17]} b2 {[%emt 0:00:27]} 42. Ne4 {[%emt 0:00:01]} b1=Q {[%emt 0:01:17]} 0-1

[Event "Charlotte Spring-B 2022"]
[Site "Charlotte"]
[Date "2022.03.18"]
[Round "4.3"]
[White "Plotkin, Mark"]
[Black "Rusonik, Max"]
[Result "0-1"]
[ECO "D02"]
[WhiteElo "2400"]
[BlackElo "2141"]
[Annotator "ChessBase"]
[PlyCount "152"]
[EventDate "2022.03.16"]
[EventType "tourn"]
[EventCountry "USA"]
[SourceTitle "playchess.com"]
[Source "ChessBase"]
[SourceQuality "1"]
[TimeControl "5400+30"]

1. d4 {[%emt 0:01:32]} Nf6 {[%emt 1:31:00]} 2. Nf3 {[%emt 0:00:25]} d5 {[%emt 0:00:00]} 3. g3 {[%emt 0:00:10]} e6 {[%emt 0:00:00]} 4. Bg2 {[%emt 0:00:04]} c5 {[%emt 0:00:00]} 5. O-O {[%emt 0:00:05]} Nc6 {[%emt 0:00:00]} 6. b3 {[%emt 0:00:22]} cxd4 {[%emt 0:00:00]} 7. Nxd4 {[%emt 0:00:14]} Bc5 {[%emt 0:00:00]} 8. Bb2 {[%emt 0:01:09]} Bd7 {[%emt 0:00:00]} 9. e3 {[%emt 0:01:21]} Rc8 {[%emt 0:00:00]} 10. Nd2 {[%emt 0:00:39]} Nxd4 {[%emt 0:00:00]} 11. exd4 {[%emt 0:00:43]} Bb4 {[%emt 0:00:00]} 12. c4 {[%emt 0:09:18]} Qa5 {[%emt 0:00:00]} 13. Nf3 {[%emt 0:00:34]} dxc4 {[%emt 0:00:00]} 14. a3 {[%emt 0:00:16]} Bd6 {[%emt 0:00:00]} 15. bxc4 {[%emt 0:00:09]} Rxc4 {[%emt 0:00:00]} 16. Ne5 {[%emt 0:00:08]} Bxe5 {[%emt 0:00:00]} 17. dxe5 {[%emt 0:00:03]} Nd5 {[%emt 0:00:00]} 18. Qd3 {[%emt 0:07:40]} Rc8 {[%emt 0:00:00]} 19. Rfd1 {[%emt 0:02:09]} Bc6 {[%emt 0:00:00]} 20. a4 {[%emt 0:17:17]} O-O {[%emt 0:00:00]} 21. Ba3 {[%emt 0:00:15]} Rfd8 {[%emt 0:00:00]} 22. Bd6 {[%emt 0:00:52]} Nc3 {[%emt 0:00:00]} 23. Bxc6 {[%emt 0:03:36]} Nxd1 {[%emt 0:00:00]} 24. Bf3 {[%emt 0:02:05]} Qe1+ {[%emt 0:00:00]} 25. Qf1 {[%emt 0:00:10]} Qxf1+ {[%emt 0:00:00]} 26. Kxf1 {[%emt 0:00:05]} Nb2 {[%emt 0:00:00]} 27. Bxb7 {[%emt 0:00:27]} Rc2 {[%emt 0:00:00]} 28. Ba6 {[%emt 0:17:54]} Nc4 {[%emt 0:01:26]} 29. Bxc4 {[%emt 0:00:44]} Rxc4 {[%emt 0:00:02]} 30. a5 {[%emt 0:00:23]} Rc2 {[%emt 0:01:47]} 31. Rb1 {[%emt 0:00:28]} Ra2 {[%emt 0:00:20]} 32. Bc7 {[%emt 0:01:21]} Rc8 {[%emt 0:02:02]} 33. Rb7 {[%emt 0:00:05]} Rc2 {[%emt 0:01:06]} 34. Bd6 {[%emt 0:01:14]} a6 {[%emt 0:00:23]} 35. Ra7 {[%emt 0:00:16]} R2c6 {[%emt 0:00:03]} 36. h4 {[%emt 0:00:46]} h5 {[%emt 0:00:23]} 37. Kg2 {[%emt 0:00:15]} Rc2 {[%emt 0:07:47]} 38. Rxa6 {[%emt 0:00:42]} Ra2 {[%emt 0:00:02]} 39. Kf3 {[%emt 0:06:40]} Rc3+ {[%emt 0:01:02]} 40. Kg2 {[%emt 0:00:06]} Rcc2 {[%emt 0:00:17]} 41. Kf3 {[%emt 0:00:11]} Rxf2+ {[%emt 0:00:29]} 42. Ke3 {[%emt 0:00:06]} Rg2 {[%emt 0:00:18]} 43. Kf3 {[%emt 0:00:09]} Kh7 {[%emt 0:00:33]} 44. Ra8 {[%emt 0:01:06]} Rg1 {[%emt 0:00:36]} 45. Bc5 {[%emt 0:00:31]} Rb1 {[%emt 0:00:37]} 46. a6 {[%emt 0:01:15]} Rb5 {[%emt 0:00:38]} 47. Bd4 {[%emt 0:00:23]} Rd5 {[%emt 0:00:26]} 48. Bb6 {[%emt 0:00:21]} Rxe5 {[%emt 0:00:56]} 49. a7 {[%emt 0:00:04]} Rb5 {[%emt 0:00:07]} 50. Rb8 {[%emt 0:00:47]} Rxb6 {[%emt 0:00:20]} 51. Rxb6 {[%emt 0:00:03]} Rxa7 {[%emt 0:00:15]} 52. Rb5 {[%emt 0:00:10]} Kh6 {[%emt 0:01:02]} 53. Re5 {[%emt 0:00:05]} Ra4 {[%emt 0:00:18]} 54. Rb5 {[%emt 0:00:22]} Rg4 {[%emt 0:00:29]} 55. Rb7 {[%emt 0:00:06]} Kg6 {[%emt 0:03:16]} 56. Rb5 f6 {[%emt 0:00:00]} 57. Ra5 {[%emt 0:00:15]} e5 {[%emt 0:00:00]} 58. Ra7 {[%emt 0:00:21]} Kf5 {[%emt 0:01:30]} 59. Rb7 {[%emt 0:00:06]} g6 {[%emt 0:00:00]} 60. Kg2 {[%emt 0:00:17]} Ra4 {[%emt 0:00:00]} 61. Kh3 {[%emt 0:00:07]} Rd4 {[%emt 0:00:00]} 62. Rb6 {[%emt 0:00:07]} Rd5 {[%emt 0:00:00]} 63. Kg2 {[%emt 0:00:45]} Rd2+ {[%emt 0:00:00]} 64. Kh3 {[%emt 0:00:40]} Rf2 {[%emt 0:00:13]} 65. Rb8 {[%emt 0:00:17]} e4 {[%emt 0:00:40]} 66. Re8 {[%emt 0:00:16]} Re2 {[%emt 0:00:43]} 67. Ra8 {[%emt 0:00:18]} e3 {[%emt 0:01:16]} 68. Ra5+ {[%emt 0:00:06]} Ke4 {[%emt 0:00:07]} 69. Ra4+ {[%emt 0:00:04]} Kd3 {[%emt 0:00:58]} 70. Ra3+ {[%emt 0:00:02]} Kd2 {[%emt 0:02:03]} 71. Ra2+ {[%emt 0:00:03]} Ke1 {[%emt 0:00:00]} 72. Ra1+ {[%emt 0:00:33]} Kf2 {[%emt 0:01:00]} 73. Ra6 {[%emt 0:00:02]} f5 {[%emt 0:00:00]} 74. Rxg6 {[%emt 0:01:03]} Re1 {[%emt 0:00:00]} 75. Kh2 {[%emt 0:00:08]} e2 {[%emt 0:00:00]} 76. Rg5 {[%emt 0:00:05]} Rh1+ {[%emt 0:00:00]} 0-1